Cogmind - Beta 13 @@@ ROGUE MODE // 2024.04.14 @ 17:05:15 Player: MO-55 Result: Destroyed by JH-BBI(R) with Subdweller Laser Performance ------------- Evolutions (0) 0 Regions Visited (2) 400 Robots Destroyed (21) 105 Value Destroyed (485) 485 Prototype IDs (0) 0 Alien Tech Used (0) 0 Bonus (0) 0 TOTAL SCORE: 990 Bonus ------- None Cogmind --------- Core Integrity 0/250 Matter 237/300 Energy 100/100 System Corruption 0% Temperature Cool (6) Movement Treading (320) Ox2 Location -10/Subcaves Parts ------- > --- POWER (1) -------- (None) > --- PROPULSION (2) --- Light Treads Light Treads > --- UTILITY (2) ------ Huge Storage Unit > --- WEAPON (2) ------- Battle Rifle Battle Cannon > --- INVENTORY (25) --- Improved Ion Engine Subdweller Power Source Light Treads Light Treads Light Treads Light Treads Spiked Treads Makeshift Leg Improved Terrain Scanner Scrap Shield Battle Cannon Grenade Launcher Subdweller Shrapnel Launcher Mining Claw Shrapnel Trap Piercing Trap Piercing Trap Peak State ------------ > --- POWER ------------ Ion Engine > --- PROPULSION ------- Light Treads Light Treads > --- UTILITY ---------- Huge Storage Unit Improved Terrain Scanner > --- WEAPON ----------- Battle Rifle Battle Cannon > --- INVENTORY -------- Improved Ion Engine Subdweller Power Source Light Treads Light Treads Light Treads Light Treads Makeshift Leg Propulsion Shielding Battle Rifle Battle Cannon Grenade Launcher Subdweller Shrapnel Launcher Mining Claw Shrapnel Trap Piercing Trap [Rating: 13] Favorites ----------- Power Ion Engine Engine Ion Engine Propulsion Light Treads Treads Light Treads Leg Aluminum Leg Wheel Wheel Utility Huge Storage Unit Device Improved Terrain Scanner Storage Huge Storage Unit Protection Core Shielding Weapon Battle Cannon Energy Gun Medium Laser Ballistic Gun Battle Rifle Ballistic Cannon Battle Cannon Build | -11 -10 -10 ------- Run | Yrd Mat Sub Slots Evolved . | . . . Power . | . . . Propulsion . | . . . Utility . | . . . Weapon . | . . . Parts Attached 29 | 6 7 16 Power 2 | 1 1 . Engine 2 | 1 1 . Core . | . . . Reactor . | . . . Propulsion 8 | 2 3 3 Treads 2 | . . 2 Leg 2 | 2 . . Wheel 4 | . 3 1 Hover . | . . . Flight . | . . . Utility 10 | 1 2 7 Device 3 | . . 3 Storage 2 | 1 1 . Processor . | . . . Hackware . | . . . Protection 5 | . 1 4 Artifact . | . . . Weapon 9 | 2 1 6 Energy Gun 3 | 2 . 1 Energy Cannon . | . . . Ballistic Gun 5 | . 1 4 Ballistic Cannon 1 | . . 1 Launcher . | . . . Special Weapon . | . . . Impact Weapon . | . . . Slashing Weapon . | . . . Piercing Weapon . | . . . Special Melee Weapon . | . . . Unidentified Prototypes . | . . . Parts Lost 6 | . 1 5 Power 2 | . 1 1 Propulsion 2 | . . 2 Utility 1 | . . 1 Weapon 1 | . . 1 Highest Loss Streak 3 | . 1 3 To Critical Strikes . | . . . Average Slot Usage (%) 97 | . 98 97 Engine 13 | . 13 13 Treads 16 | . . 22 Leg 4 | . 17 . Wheel 6 | . 10 4 Device 3 | . . 5 Storage 14 | . 14 14 Protection 9 | . 13 8 Energy Gun 7 | . 22 1 Ballistic Gun 11 | . 5 14 Ballistic Cannon 9 | . . 12 Naked Turns . | . . . Heaviest Build 93 | 14 89 93 Greatest Support 40 | 20 20 40 Greatest Overweight (x) 9 | 3 4 9 Average Overweight (x) 2 | . 1 2 Largest Inventory Capacity 25 | 8 25 25 Average Capacity 21 | 7 14 25 Most Carried 18 | 7 10 18 Average Carried 12 | 4 8 14 Final Capacity 25 | 8 25 25 Final Carried 18 | 7 10 18 Class Distribution -------------------- 100% | Mutant Dominant Class ---------------- Mutant | -10/Materials Mutant | -10/Subcaves Resources | -11 -10 -10 ----------- Run | Yrd Mat Sub Matter Collected 704 | 204 136 364 Remotely . | . . . Salvage Created 478 | 30 260 188 Parts 35 | 3 22 10 Haulers Intercepted . | . . . Recyclers Shooed 1 | 1 . . Parts Field Recycled . | . . . Retrieved Matter . | . . . Parts Self-Destructed 12 | . . 12 Prevented . | . . . Kills | -11 -10 -10 ------- Run | Yrd Mat Sub Combat Hostiles Destroyed 17 | . 10 7 Guns 12 | . 10 2 Cannons 5 | . . 5 Classes Destroyed 7 | 1 4 2 Tunneler 1 | 1 . . Mechanic 1 | . 1 . Watcher 2 | . 2 . Swarmer 8 | . 8 . Grunt 2 | . 2 . Sentry 1 | . . 1 Subdweller 6 | . . 6 Best Kill Streak 3 | 1 3 2 Combat Bots Only 3 | . 3 2 Max Kills in Single Turn 1 | 1 1 1 Gunslinging . | . . . Exploded . | . . . Melee . | . . . Uniques/NPCs Destroyed . | . . . Combat | -11 -10 -10 -------- Run | Yrd Mat Sub Hostile Shots Fired 98 | . 47 51 Missed 28 | . 17 11 Damage Taken 1087 | . 306 781 Core 250 | . 42 208 Absorbed by Shields . | . . . Redirected to Shielding 69 | . 8 61 Core Remaining (%) 100 | 100 . . Volleys Fired 94 | 5 40 49 Largest 2 | 2 2 2 Hottest 100 | 100 100 70 Shots Fired 172 | 10 79 83 Gun 133 | 10 79 44 Cannon 39 | . . 39 Launcher . | . . . Special . | . . . Kinetic 92 | . 15 77 Thermal 80 | 10 64 6 Explosive . | . . . Electromagnetic . | . . . Robot Hit Streak 36 | 3 8 36 Robot Miss Streak 6 | 1 6 3 Penetration Max . | . . . Secondary Targets . | . . . Shots Hit Robots 98 | 7 40 51 Core Hits 32 | 1 16 15 Critical Kills . | . . . Critical Parts Destroyed 1 | . 1 . Critical Strikes 5 | . 3 2 Burn 2 | . 2 . Destroy 1 | . 1 . Blast 2 | . . 2 Melee Attacks . | . . . Impact . | . . . Slashing . | . . . Piercing . | . . . Sneak Attacks . | . . . Combat Hostiles . | . . . Follow-up Attacks . | . . . Damage Inflicted 1457 | 88 466 903 Guns 949 | 88 466 395 Cannons 508 | . . 508 Explosions . | . . . Melee . | . . . Ramming . | . . . Kinetic 913 | . 85 828 Thermal 544 | 88 381 75 Explosive . | . . . Electromagnetic . | . . . Impact . | . . . Slashing . | . . . Piercing . | . . . Highest Corruption . | . . . Average Corruption . | . . . Corruption Purged . | . . . Corruption Blocked . | . . . Overload Shots . | . . . Overflow Damage . | . . . Projectiles . | . . . Explosions . | . . . Melee . | . . . Knockbacks 5 | . . 5 Impact . | . . . Kinetic 5 | . . 5 Secondary . | . . . Self-Inflicted Damage . | . . . Shots . | . . . Rammed . | . . . Targets Rammed . | . . . Kicked . | . . . Crushed . | . . . Highest Temperature 322 | 121 322 19 Average Temperature 77 | 54 82 13 Received Heat Transfer 195 | . 60 135 Effects 1 | . 1 . Short Circuit 1 | . 1 . Siege Activations . | . . . Robots Corrupted . | . . . Combat Hostiles . | . . . Parts Fried . | . . . Impact Corruptions . | . . . Robots Melted . | . . . Combat Hostiles . | . . . Parts Melted 5 | 2 2 1 Heat Transferred 1739 | 259 1258 222 Parts Sabotaged . | . . . Parts Stolen . | . . . Parts Stripped . | . . . Power Chain Reactions . | . . . Alert | -11 -10 -10 ------- Run | Yrd Mat Sub Peak Influence 270 | 5 270 . Initial 3 | . 3 . Average 74 | 1 81 . Maximum Alert Level 1 | . 1 . Low Security (%) 84 | 100 83 . Level 1 15 | . 16 . Level 2 . | . . . Level 3 . | . . . Level 4 . | . . . Level 5 . | . . . High Security . | . . . Max Security . | . . . Squads Dispatched 1 | . 1 . Investigation 1 | . 1 . Extermination . | . . . Reinforcement . | . . . Assault . | . . . Garrison . | . . . Intercept . | . . . Searches Triggered . | . . . Construction Impeded . | . . . Haulers Reinforced . | . . . Active Scanning Responses . | . . . Cargo Convoy Interrupts . | . . . Stealth | -11 -10 -10 --------- Run | Yrd Mat Sub Distress Signals 1 | . 1 . Communications Jammed . | . . . Distress Signals . | . . . Times Spotted 32 | . 24 8 Peak Tracking Total 6 | . 6 2 Tactical Retreats 3 | . 3 . Traps | -11 -10 -10 ------- Run | Yrd Mat Sub Traps Triggered 2 | . 2 . Indirectly . | . . . Trap Hack Attempts . | . . . Triggered . | . . . Disarmed . | . . . Reprogrammed . | . . . Reused . | . . . Traps Extracted . | . . . Installed . | . . . Triggered . | . . . Most Traps Carried 3 | . . 3 Machines | -11 -10 -10 ---------- Run | Yrd Mat Sub Machines Disabled . | . . . Max in Single Turn . | . . . Machines Repaired . | . . . Machines Dismantled . | . . . Machines Sabotaged . | . . . Overloaded Fab Kills . | . . . Hacking | -11 -10 -10 --------- Run | Yrd Mat Sub Machines Accessed 8 | . 7 1 Terminals 7 | . 7 . Fabricators . | . . . Repair Stations . | . . . Recycling Units . | . . . Scanalyzers . | . . . Garrison Access . | . . . Total Hacks 23 | . 22 1 Successful 9 | . 8 1 Failed 13 | . 13 . Catastrophic 2 | . 2 . Database Lockouts 1 | . 1 . Manual 10 | . 10 . Terminals 22 | . 22 . Fabricators . | . . . Repair Stations . | . . . Recycling Units . | . . . Scanalyzers . | . . . Garrison Access . | . . . Terminal Hacks 8 | . 7 1 Record 1 | . . 1 Robot Analysis 1 | . 1 . Terminal Index 1 | . 1 . Unreport Threat 2 | . 2 . Locate Traps 1 | . 1 . Hauler Manifests 2 | . 2 . Fabricator Hacks . | . . . Repair Station Hacks . | . . . Recycling Unit Hacks . | . . . Scanalyzer . | . . . Garrison Access Hacks . | . . . Unauthorized Hacks 1 | . 1 . Terminals 1 | . 1 . Botnet 1 | . 1 . Fabricators . | . . . Repair Stations . | . . . Recycling Units . | . . . Scanalyzers . | . . . Garrison Access . | . . . Data Cores Recovered . | . . . Used . | . . . Hacking Detections 5 | . 5 . Full Trace Events . | . . . Feedback Events . | . . . Feedback Blocked . | . . . Robot Schematics Acquired . | . . . Robots Built . | . . . Authchips . | . . . Time . | . . . Total Robot Build Rating . | . . . Part Schematics Acquired . | . . . Parts Built . | . . . Authchips . | . . . Time . | . . . Total Part Build Rating . | . . . Parts Repaired . | . . . Time . | . . . Parts Recycled . | . . . Recycled Matter . | . . . Retrieved Matter . | . . . Retrieved Components . | . . . Parts Scanalyzed . | . . . Part Schematics Acquired . | . . . Parts Damaged . | . . . Bothacking | -11 -10 -10 ------------ Run | Yrd Mat Sub Used RIF Installer . | . . . Robots Hacked . | . . . Non-combat . | . . . Combat . | . . . Robot Hacks Applied . | . . . Relay Couplers Released . | . . . Fabnet Peak Effective % . | . . . Robots Rewired . | . . . Allies Hacked . | . . . Hacks Repelled . | . . . Allies | -11 -10 -10 -------- Run | Yrd Mat Sub Total Allies . | . . . Largest Group . | . . . Highest-Rated Group . | . . . Highest-Rated Ally . | . . . Total Orders . | . . . Ally Attacks . | . . . Total Damage . | . . . Kills . | . . . Allies Corrupted . | . . . Allies Melted . | . . . Intel | -11 -10 -10 ------- Run | Yrd Mat Sub Robot Analysis Total 1 | . 1 . Derelict Logs Recovered . | . . . Drone Launches . | . . . Drone Recoveries . | . . . Exploration | -11 -10 -10 ------------- Run | Yrd Mat Sub Turns Passed 3575 | 89 946 2540 Spaces Moved 1502 | 45 587 870 Core 9 | 9 . . Treads 584 | . . 584 Legs 418 | 36 382 . Wheels 491 | . 205 286 Hover . | . . . Flight . | . . . Fastest Speed 50 | 50 120 131 Average Speed 208 | 130 126 266 Slowest Speed 320 | 200 140 320 Overloaded Moves . | . . . Propulsion Burnouts . | . . . Robots Hopped . | . . . Cave-ins Triggered . | . . . Exploration Rate (%) 48 | 5 89 52 Regions Visited 2 Branch Regions 1 Pre-discovered Areas . | . . . Known Exits Taken . | . . . Unknown Exits Taken 2 | 1 1 . Scrap Searched 5 | . . 5 Spaces Dug . | . . . Terrain Destroyed . | . . . Melee . | . . . Projectile . | . . . AOE . | . . . Terrain Rammed . | . . . Walls Destroyed . | . . . Machines Disabled . | . . . Actions | -11 -10 -10 --------- Run | Yrd Mat Sub Total 1779 | 62 712 1005 Wait 118 | . 67 51 Move 1500 | 44 586 870 Hop . | . . . Pick Up 26 | 7 7 12 Fast Attach 12 | 6 2 4 Attach 5 | . 1 4 Detach 1 | . . 1 Swap 12 | . 4 8 Drop 11 | . 5 6 Fire 94 | 5 40 49 Melee . | . . . Ram . | . . . Kick . | . . . Crush . | . . . Escape Stasis . | . . . Rewire . | . . . Trap . | . . . Miscellaneous . | . . . Route ------- -11/Scrapyard -10/Materials (discovered 4 exits: [*Mat x2] / [*Min] / *Sub) -10/Subcaves (discovered 2 exits: [*Mat x2]) History --------- Turn | Location | Event 19 | -11/Scrapyard | Discovered new exit (range 15) 90 | -11/Scrapyard | Entered Materials 320 | -10/Materials | Build established: Mutant 400 | -10/Materials | Discovered new exit (range 4) 563 | -10/Materials | Discovered new exit (range 11) 565 | -10/Materials | Central database locked down 681 | -10/Materials | Discovered new exit (range 15) 1025 | -10/Materials | Discovered new exit (range 9) 1036 | -10/Materials | Entered Subcaves 1217 | -10/Subcaves | Discovered new exit (range 12) 1270 | -10/Subcaves | Shifting Twisted Machinery released Battle Cannon 1277 | -10/Subcaves | Shifting Twisted Machinery released Mak. Leg 1307 | -10/Subcaves | Discovered new exit (range 10) 1418 | -10/Subcaves | Shifting Twisted Machinery released Battle Cannon 1420 | -10/Subcaves | Shifting Twisted Machinery released Battle Rifle 1547 | -10/Subcaves | A swath of the cavern ceiling suddenly collapsed 2245 | -10/Subcaves | A swath of the cavern ceiling suddenly collapsed 2263 | -10/Subcaves | Visited Clippyterm 3215 | -10/Subcaves | Core integrity fell below 50% 3451 | -10/Subcaves | Core integrity fell below 20% 3489 | -10/Subcaves | Lost 3 parts (1p1u1w) 3576 | -10/Subcaves | Destroyed by JH-BBI(R) with Subdweller Laser Last Messages --------------- 03455_ IM-I5F(R) destroyed. 03456_ Battle Rifle destroyed. 03458_ Propulsion Shielding destroyed. 03459_ Disposable Heat Sink melted. 03459_ FK-81F(R) destroyed. 03462_ Acquired 37 matter. 03465_ Acquired 5 matter. 03513_ Searching scrap... 03513_ Found Sub. Laser. 03513_ Found Piercing Trap. 03513_ Found 13 Matter. 03514_ Acquired 13 matter. 03519_ Acquired Piercing Trap. 03546_ Searching scrap... 03546_ Found Scrap Shield. 03546_ Found Spk. Treads. 03546_ Found 25 Matter. 03547_ Acquired 25 matter. 03552_ Acquired Spk. Treads. 03566_ Acquired Scrap Shield. Map ----- +----------------------------------------------------+ | ?????????????????????????????????????????????????? | | ?????????????????????????????????????????????????? | | ?????????????????????????????????????????????????? | | ?????????????????????????????????????????????????? | | ?????????????????????????????????????????????????? | | ?????????????????????????????????????????????????? | | ?????????????????????????????????????????????????? | | ?????????????????????????????????????????????????? | | ?????????????????????????????????????????????????? | | ?????????????????????????????????????????????????? | | ?????????????????????????????????????????????????? | | ?????????????????????????????????????????????????? | | ?????????????????????????????????????????????????? | | ?????????????????????????????????????????????????? | | ?????????????????????????????????????????????????? | | ?????????????????????????????????????????????????? | | ?????????????????????????????????????????????????? | | ?????????????????????????????????????????????????? | | ?????????????????????????????????????????????????? | | ????????????????????????#????????????????????????? | | ????????????????????????<##??????????????????????? | | ???????????????????????? ##?????????????????????? | | ?????????????#?????????? #?????????????????????? | | ??????????????"?????????#R<#?????????????????????? | | ????????????????????????# <#??#??????????????????? | | ??????????????????????###@<#?????????????????????? | | ??????????????????????#<< <#?????????????????????? | | ?????????????##########<< ##???????##?????? ????#? | | ?????????????#""&"# ###??#????#????#??? ??#?? | | ?????????????# ## "#?????#?#?????????????? | | ?????????????##"["## ## "#?????????????? ? ?#??? | | ?????"???#??#######< #####???????##??"??????#??? | | ???????????## ### " ####??????#?????##? ?? ?? | | ?????????###%&%= ! ####??#??????? "?????? | | ????#?#???# && ### #### #????###? ? ##???? | | ???????#### & ### ## ###### ###?? #???? | | ?????#?# #### ## # ### #?#?? | | ???????#" ### & """"### #?#?? | | ? ?????#" #### & ## ##### | | ???????#"" ##??### [ # # #""#"#" | | ??????###" ######## ## ## """""""" | | ????????##" ## ### ### # "" "" " | | ???????#?## ## ##### #""## "# | | ????? ????### ### #???##"""" ### "### | | ????? ????#?# ### #?## ###??##""" ## ##?# | | ?#?????????### #?## #### ####?######## #### | | ???#??????##### #?### ## ###???#?# ##?# | | ??????? ##????## ##??## ""#????######?? | | ? ????#??# ### ##??#### #??????##### | | ????????# #?#???## ##?#### #? | +----------------------------------------------------+ Best States ------------- Heat Dissipation 25 Energy Generation 10 Energy Capacity 250 Matter Stores 300 Matter Capacity 300 Sight Range 16 Terrain Scan Range 16 Terrain Scan Density 10 Core Shielding 20 Propulsion Shielding 33 Evasion (%) 55 Recoil Reduction 2 Item Schematics ----------------- None Robot Schematics ------------------ None Fabricated ------------ Nothing Alien Tech Used ----------------- None Achievements -------------- None Challenges ------------ None Game ------ Seed ArchitectPiercingRail Manual? 0 Play Time 00:16:50 Cumulative 101.7 hours Start 2024.04.14 @ 16:48:27 End 2024.04.14 @ 17:05:15 Sessions 1 Manual Loads 0 Difficulty Rogue Special Mode None Game No. 85 Rogue 85 Adventurer 0 Explorer 0 Win Type - Total 2 Types 1/0/1/0/0/0/0/0/0 Lore% 47 Gallery% 61 Achievement% 50 Wizard Run 0 Options --------- Layout 2 ASCII 0 Keyboard 0 Movement Mouse Keybinds 0 Fullscreen 2 Font 32/SmallcapsGlow Map View 50x44 Zoom Use 0% Tactical HUD 1 Map Filters NONE Filters NONE Steam 1 RUN: c928676e-68a0-4276-a0ea-e5112c989ac8